fUST/lending_fUST_20240708
["ID","MTS","AMOUNT","RATE_DAILY","PERIOD"]
[331438965,1720408252002,-500.0,0.00070757,120]
[331438966,1720408252011,-170.075959,0.00070763,120]
[331438967,1720408252020,-749.68,0.00070838,120]
[331438968,1720408252029,-500.0,0.00070847,120]
[331438969,1720408252038,-500.0,0.00070847,120]
[331438970,1720408252047,-500.0,0.00070847,120]
[331438971,1720408252056,-436.07200932,0.00070847,120]
[331438972,1720408252065,-500.0,0.00070847,120]
[331438973,1720408252074,-500.0,0.00070847,120]
[331438974,1720408252083,-1672.29,0.00070847,120]
[331438975,1720408252092,-500.0,0.00070847,120]
[331438976,1720408252101,-500.0,0.00070847,120]
[331438977,1720408252109,-917.69,0.00070847,120]
[331438978,1720408252118,-500.0,0.00070847,120]
[331438979,1720408252127,-500.0,0.00070847,120]
[331438980,1720408252136,-500.0,0.00070847,120]
[331438981,1720408252145,-661.21,0.00070847,120]
[331438982,1720408252155,-500.0,0.00070847,120]
[331438983,1720408252166,-500.0,0.00070847,120]
[331438984,1720408252175,-1236.56,0.00070847,120]
[331438985,1720408252184,-500.0,0.00070847,120]
[331438986,1720408252192,-500.0,0.00070847,120]
[331438987,1720408252201,-151.0,0.00071233,120]
[331438988,1720408252210,-3000.0,0.00071559,120]
[331438989,1720408252219,-683.0,0.00072262,120]
[331438990,1720408252229,-1000.0,0.000725,2]
[331438991,1720408252238,-1300.0,0.00073,120]
[331438992,1720408252246,-151.0,0.00073315,120]
[331438993,1720408252255,-2000.0,0.000735,30]
[331438994,1720408252264,-500.0,0.00073972,2]
[331438995,1720408252273,-500.0,0.00073972,120]
[331438996,1720408252282,-500.0,0.00073972,120]
[331438997,1720408252291,-2140.0,0.00073972,60]
[331438998,1720408252299,-5372.97,0.00073972,120]
[331438999,1720408252308,-389.54681381,0.00073972,120]
[331439000,1720408252317,-400.119876,0.00073972,120]
[331439001,1720408252326,-151.0,0.00073972,120]
[331439002,1720408252335,-400.119876,0.00073972,120]
[331439003,1720408252345,-500.0,0.00074796,120]
[331439004,1720408252357,-6708.56,0.00074796,120]
[331439005,1720408252366,-3000.0,0.00074813,120]
[331439006,1720408252375,-500.0,0.00074834,2]
[331439007,1720408252387,-1998.25041648,0.00075,120]
[331439008,1720408252396,-3008.2286,0.00075,120]
[331439009,1720408252406,-6651.40584496,0.00075444,120]
[331439010,1720408252415,-154.57491897,0.00075651,2]
[331439011,1720408252423,-388.86057874,0.00075663,2]
[331439012,1720408252433,-154.85870625,0.00075663,7]
[331439013,1720408252442,-683.0,0.00075876,120]
[331439014,1720408252451,-2109.5,0.00076236,120]
[331439015,1720408252459,-1377.8,0.00076236,120]
[331439016,1720408252468,-2601.7,0.00076236,120]
[331439017,1720408252478,-619.08,0.00076236,120]
[331439018,1720408252487,-500.0,0.00076236,120]
[331439019,1720408252496,-749.68,0.00076318,120]
[331439020,1720408252504,-500.0,0.00076327,120]
[331439021,1720408252513,-500.0,0.00076327,120]
[331439022,1720408252523,-500.0,0.00076327,120]
[331439023,1720408252532,-500.0,0.00076327,120]
[331439024,1720408252542,-500.0,0.00076327,120]
[331439025,1720408252551,-1672.29,0.00076327,120]
[331439026,1720408252559,-500.0,0.00076327,120]
[331439027,1720408252568,-500.0,0.00076327,120]
[331439028,1720408252577,-917.69,0.00076327,120]
[331439029,1720408252586,-500.0,0.00076327,120]
[331439030,1720408252595,-500.0,0.00076327,120]
[331439031,1720408252604,-299.48027591,0.00076327,120]
[331439032,1720408252613,-661.21,0.00076327,120]
[331439033,1720408252623,-500.0,0.00076327,120]
[331439034,1720408252632,-500.0,0.00076327,120]
[331439035,1720408252641,-1236.56,0.00076327,120]
[331439036,1720408252650,-500.0,0.00076327,120]
[331439037,1720408252660,-500.0,0.00076327,120]
[331439038,1720408252670,-151.0,0.00077479,120]
[331439039,1720408252679,-151.0,0.00077479,120]
[331439040,1720408252688,-5000.0,0.00078,120]
[331439041,1720408252697,-3000.0,0.00078066,120]
[331439042,1720408252706,-312.996055,0.000784,30]
[331439043,1720408252715,-500.0,0.00079452,2]
[331439044,1720408252724,-500.0,0.00079452,120]
[331439045,1720408252734,-500.0,0.00079452,120]
[331439046,1720408252743,-2000.0,0.00079452,60]
[331439047,1720408252752,-5372.97,0.00079452,120]
[331439048,1720408252761,-632.27923866,0.00079669,120]
[331439049,1720408252770,-663.18788163,0.0008,50]
[331439050,1720408252779,-5000.0,0.0008,120]
[331439051,1720408252788,-1000.0,0.0008,120]
[331439052,1720408252797,-1998.29446918,0.0008,120]
[331439053,1720408252806,-13819.68092864,0.0008,2]
[331439054,1720408252816,-500.0,0.0008,120]
[331439055,1720408252825,-62733.37399609,0.0008,120]
[331439056,1720408252834,-1925.308937,0.0008,120]
[331439057,1720408252843,-400.119876,0.0008,120]
[331439058,1720408252852,-151.0,0.0008,120]
[331439059,1720408252861,-400.119876,0.0008,120]
[331439060,1720408252870,-500.0,0.00080275,120]
[331439061,1720408252879,-6708.56,0.00080275,120]
[331439062,1720408252888,-3000.0,0.00081319,120]
[331439063,1720408252897,-151.0,0.00081644,120]
[331439064,1720408252906,-2109.5,0.00081716,120]
[331439065,1720408252915,-1377.8,0.00081716,120]
[331439066,1720408252924,-2601.7,0.00081716,120]
[331439067,1720408252933,-619.08,0.00081716,120]
[331439068,1720408252942,-500.0,0.00081716,120]
[331439069,1720408252951,-749.68,0.00081797,120]
[331439070,1720408252960,-629.54444419,0.00081806,120]
[331439071,1720408252969,-500.0,0.00081806,120]
[331439072,1720408252978,-500.0,0.00081806,120]
[331439073,1720408252988,-500.0,0.00081806,120]
[331439074,1720408252997,-500.0,0.00081806,120]
[331439075,1720408253006,-1672.29,0.00081806,120]
[331439076,1720408253015,-500.0,0.00081806,120]
[331439077,1720408253024,-500.0,0.00081806,120]
[331439078,1720408253033,-917.69,0.00081806,120]
[331439079,1720408253043,-500.0,0.00081806,120]
[331439080,1720408253052,-500.0,0.00081806,120]
[331439081,1720408253061,-661.21,0.00081806,120]
[331439082,1720408253070,-210.00739599,0.00081806,120]
[331439083,1720408253079,-504.26616509,0.00081806,120]
[331439084,1720408253088,-1236.56,0.00081806,120]
[331439085,1720408253097,-500.0,0.00081806,120]
[331439086,1720408253106,-500.0,0.00082191,120]
[331439087,1720408253115,-500.0,0.00082191,120]
[331439088,1720408253124,-500.0,0.00082191,120]
[331439089,1720408253134,-500.0,0.00082191,120]
[331439090,1720408253143,-500.0,0.00082191,120]
[331439091,1720408253153,-500.0,0.00082191,120]
[331439092,1720408253164,-500.0,0.00082191,120]
[331439093,1720408253173,-500.0,0.00082191,120]
[331439094,1720408253182,-500.0,0.00082191,120]
[331439095,1720408253191,-289.24831319,0.00082191,120]
[331439096,1720408253200,-5430.66,0.00082191,120]
[331439097,1720408253209,-151.0,0.00083726,120]
[331439098,1720408253218,-3000.0,0.00084572,120]
[331439099,1720408253227,-500.0,0.00084931,2]
[331439100,1720408253236,-500.0,0.00084931,120]
[331439101,1720408253245,-500.0,0.00084931,120]
[331439102,1720408253255,-5372.97,0.00084931,120]
[331439103,1720408253264,-1998.29446918,0.00085,120]
[331439104,1720408253273,-515.0,0.00085,60]
[331439105,1720408253282,-500.0,0.00085755,120]
[331439106,1720408253291,-6708.56,0.00085755,120]
[331439107,1720408253300,-151.0,0.00085808,120]
[331439108,1720408253309,-2109.5,0.00087195,120]
[331439109,1720408253318,-1377.8,0.00087195,120]
[331439110,1720408253327,-2601.7,0.00087195,120]
[331439111,1720408253336,-619.08,0.00087195,120]
[331439112,1720408253345,-500.0,0.00087195,120]
[331439113,1720408253355,-749.68,0.00087276,120]
[331439114,1720408253372,-502.21615366,0.00087286,120]
[331439115,1720408253381,-500.0,0.00087286,120]
[331439116,1720408253391,-500.0,0.00087286,120]
[331439117,1720408253403,-306.42371075,0.00087286,120]
[331439118,1720408253417,-1672.29,0.00087286,120]
[331439119,1720408253427,-500.0,0.00087286,120]
[331439120,1720408253441,-500.0,0.00087286,120]
[331439121,1720408253451,-917.69,0.00087286,120]
[331439122,1720408253461,-500.0,0.00087286,120]
[331439123,1720408253471,-500.0,0.00087286,120]
[331439124,1720408253480,-661.21,0.00087286,120]
[331439125,1720408253489,-1236.56,0.00087286,120]
[331439126,1720408253499,-510.17120811,0.00087286,120]
[331439127,1720408253508,-170.075959,0.00087319,120]
[331439128,1720408253517,-3000.0,0.00087825,120]
[331439129,1720408253528,-32878.29418047,0.00088,120]
[331439130,1720408253537,-400.119876,0.00088,120]
[331439131,1720408253547,-151.0,0.00088,120]
[331439132,1720408253556,-400.119885,0.00088,120]
[331439133,1720408253565,-305.0,0.00089973,120]
[331439134,1720408253575,-197.0,0.00089973,120]
[331439135,1720408253653,-1000.0,0.0009,120]
[331439136,1720408253665,-1998.29446918,0.0009,120]
[331439137,1720408253675,-5000.0,0.0009,120]
[331439138,1720408253684,-500.0,0.0009041,2]
[331439139,1720408253694,-500.0,0.0009041,120]
[331439140,1720408253704,-500.0,0.0009041,120]
[331439141,1720408253713,-5372.97,0.0009041,120]
[331439142,1720408253722,-3000.0,0.00091078,120]
[331439143,1720408253732,-500.0,0.00091234,120]
[331439144,1720408253741,-6708.56,0.00091234,120]
[331439145,1720408253750,-2109.5,0.00092675,120]
[331439146,1720408253759,-1377.8,0.00092675,120]
[331439147,1720408253768,-2601.7,0.00092675,120]
[331439148,1720408253777,-619.08,0.00092675,120]
[331439149,1720408253786,-500.0,0.00092675,120]
[331439150,1720408253795,-749.68,0.00092756,120]
[331439151,1720408253805,-500.0,0.00092765,120]
[331439152,1720408253815,-500.0,0.00092765,120]
[331439153,1720408253824,-1672.29,0.00092765,120]
[331439154,1720408253833,-500.0,0.00092765,120]
[331439155,1720408253843,-917.69,0.00092765,120]
[331439156,1720408253852,-500.0,0.00092765,120]
[331439157,1720408253862,-500.0,0.00092765,120]
[331439158,1720408253871,-661.21,0.00092765,120]
[331439159,1720408253880,-1236.56,0.00092765,120]
[331439160,1720408253889,-3000.0,0.00094331,120]
[331439161,1720408253899,-6061.65475339,0.0009488,60]
[331439162,1720408253908,-1998.29446918,0.00095,120]
[331439163,1720408253917,-500.0,0.0009589,2]
[331439164,1720408253926,-500.0,0.0009589,120]
[331439165,1720408253935,-450.21465877,0.0009589,120]
[331439166,1720408253944,-5372.97,0.0009589,120]
[331439167,1720408253953,-500.0,0.00096713,120]
[331439168,1720408253962,-6708.56,0.00096713,120]
[331439169,1720408253971,-6961.01378069,0.000975,30]
[331439170,1720408253981,-3000.0,0.00097584,120]
[331439171,1720408253989,-2109.5,0.00098154,120]
[331439172,1720408253998,-1377.8,0.00098154,120]
[331439173,1720408254007,-2601.7,0.00098154,120]
[331439174,1720408254016,-619.08,0.00098154,120]
[331439175,1720408254025,-500.0,0.00098154,120]
[331439176,1720408254035,-749.68,0.00098235,120]
[331439177,1720408254044,-500.0,0.00098244,120]
[331439178,1720408254053,-500.0,0.00098244,120]
[331439179,1720408254063,-1672.29,0.00098244,120]
[331439180,1720408254072,-500.0,0.00098244,120]
[331439181,1720408254081,-917.69,0.00098244,120]
[331439182,1720408254091,-556.34229029,0.00098244,120]
[331439183,1720408254100,-500.0,0.00098244,120]
[331439184,1720408254110,-661.21,0.00098244,120]
[331439185,1720408254119,-1236.56,0.00098244,120]
[331439186,1720408254128,-1000.0,0.00099999,120]
[331439187,1720408254137,-1117.55911993,0.001,120]
[331439188,1720408254146,-1000.0,0.001,120]
[331439189,1720408254155,-1998.29446918,0.001,120]
[331439190,1720408254165,-1000.0,0.001,2]
[331439191,1720408254174,-6000.0,0.001,120]
[331439192,1720408254183,-2000.0,0.001,120]
[331439193,1720408254193,-200.0,0.001,120]
[331439194,1720408254202,-696.30491192,0.001,120]
[331439195,1720408254211,-559.65087901,0.001,120]
[331439196,1720408254221,-287.98031376,0.001,120]
[331439197,1720408254230,-22655.71316741,0.001,120]
[331439198,1720408254239,-151.0,0.001,120]
[331439199,1720408254248,-151.0,0.001,120]
[331439200,1720408254257,-3000.0,0.00100838,120]
[331439201,1720408254266,-500.0,0.00101369,2]
[331439202,1720408254276,-500.0,0.00101369,120]
[331439203,1720408254285,-5372.97,0.00101369,120]
[331439204,1720408254294,-500.0,0.00102193,120]
[331439205,1720408254303,-6708.56,0.00102193,120]
[331439206,1720408254312,-2109.5,0.00103634,120]
[331439207,1720408254321,-1377.8,0.00103634,120]
[331439208,1720408254330,-2601.7,0.00103634,120]
[331439209,1720408254339,-619.08,0.00103634,120]
[331439210,1720408254357,-500.0,0.00103634,120]
[331439211,1720408254368,-749.68,0.00103715,120]
[331439212,1720408254378,-121.69959337,0.00103724,120]
[331439218,1720408409252,170.075959,0.00021096,2]
[331439221,1720408487215,909.27,0.00021096,2]
[331439228,1720408996586,43.17518041,0.0002557,2]
[331439229,1720408996611,449.29622617,0.0002557,2]
[331439230,1720409011071,599.5599609,0.0002557,2]
[331439237,1720409125412,443.71888907,0.00030993,4]
[331439240,1720409145163,-1585.61757549,0.00037807,4]
[331439243,1720409237092,-369.38176865,0.00037259,2]
[331439244,1720409302296,-1035.69511707,0.00037259,2]
[331439245,1720409302360,-507.60170692,0.00037259,2]
[331439246,1720409304509,528.09341015,0.00036351,4]
[331439247,1720409304538,1035.69511707,0.00036351,4]
[331439248,1720409304572,98.22515178,0.00036351,4]
[331439250,1720409356092,-156.72112003,0.00039994,4]
[331439251,1720409356112,-155.42805707,0.00039999,4]
[331439252,1720409356132,-151.0,0.0004,120]
[331439253,1720409356151,-155.58300829,0.00040807,4]
[331439254,1720409356171,-162.2326981,0.00041285,2]
[331439255,1720409356190,-578.81741217,0.00044061,4]
[331439257,1720409396331,542.0,0.00042666,120]
[331439258,1720409414334,212.97237932,0.00044061,4]
[331439346,1720409439794,-5479.0,0.00054137,30]
[331439347,1720409439805,-186.46783771,0.00059798,28]
[331439348,1720409439815,-500.0,0.00059879,120]
[331439349,1720409439827,-500.0,0.00059888,120]
[331439350,1720409439837,-521.18,0.00059888,120]
[331439351,1720409439847,-500.0,0.00059888,120]
[331439352,1720409439857,-505.02103644,0.00059888,2]
[331439353,1720409439869,-500.0,0.00059888,120]
[331439354,1720409439880,-2070.0,0.00059889,120]
[331439355,1720409439896,-1318.44,0.00059897,120]
[331439356,1720409439907,-500.0,0.00059897,120]
[331439357,1720409439917,-861.12,0.00059897,120]
[331439358,1720409439927,-1626.07,0.00059897,120]
[331439359,1720409439937,-500.0,0.00059897,120]
[331439360,1720409439948,-500.0,0.00059897,120]
[331439361,1720409439959,-4192.85,0.00059897,120]
[331439362,1720409439969,-603.32977773,0.00059897,120]
[331439363,1720409439979,-500.0,0.00059898,120]
[331439364,1720409439989,-500.0,0.00059898,120]
[331439365,1720409440000,-500.0,0.00059898,120]
[331439366,1720409440013,-500.0,0.00059898,120]
[331439367,1720409440023,-500.0,0.00059898,120]
[331439368,1720409440033,-500.0,0.00059898,120]
[331439369,1720409440044,-500.0,0.00059898,120]
[331439370,1720409440053,-500.0,0.00059898,120]
[331439371,1720409440063,-592.639643,0.00059898,120]
[331439372,1720409440082,-500.0,0.00059898,120]
[331439373,1720409440092,-1114.86,0.00059898,120]
[331439374,1720409440102,-505.0495452,0.00059898,120]
[331439375,1720409440114,-611.79,0.00059898,120]
[331439376,1720409440125,-3358.1,0.00059898,120]
[331439377,1720409440135,-500.0,0.00059898,120]
[331439378,1720409440145,-500.0,0.00059898,120]
[331439379,1720409440155,-471.53863611,0.00059898,120]
[331439380,1720409440165,-4143.35,0.00059898,120]
[331439381,1720409440176,-500.0,0.00059898,120]
[331439382,1720409440186,-824.37,0.00059898,120]
[331439383,1720409440195,-501.83399043,0.0006,120]
[331439384,1720409440206,-152.0,0.00061,120]
[331439385,1720409440216,-500.0,0.00061799,120]
[331439386,1720409440226,-3000.0,0.000618,120]
[331439387,1720409440237,-500.0,0.00063836,120]
[331439388,1720409440247,-151.0,0.00064986,120]
[331439389,1720409440258,-500.0,0.00065359,120]
[331439390,1720409440267,-500.0,0.00065368,120]
[331439391,1720409440278,-500.0,0.00065368,120]
[331439392,1720409440288,-500.0,0.00065368,120]
[331439393,1720409440298,-1318.44,0.00065377,120]
[331439394,1720409440308,-861.12,0.00065377,120]
[331439395,1720409440318,-1626.07,0.00065377,120]
[331439396,1720409440328,-500.0,0.00065377,120]
[331439397,1720409440338,-500.0,0.00065377,120]
[331439398,1720409440347,-4192.85,0.00065377,120]
[331439399,1720409440357,-590.06711689,0.00065378,120]
[331439400,1720409440368,-500.0,0.00065378,120]
[331439401,1720409440378,-500.0,0.00065378,120]
[331439402,1720409440388,-500.0,0.00065378,120]
[331439403,1720409440397,-1114.86,0.00065378,120]
[331439404,1720409440407,-611.79,0.00065378,120]
[331439405,1720409440417,-3358.1,0.00065378,120]
[331439406,1720409440427,-500.0,0.00065378,120]
[331439407,1720409440437,-500.0,0.00065378,120]
[331439408,1720409440447,-4143.35,0.00065378,120]
[331439409,1720409440456,-500.0,0.00065378,120]
[331439410,1720409440466,-824.37,0.00065378,120]
[331439411,1720409440476,-3000.0,0.00065882,120]
[331439412,1720409440486,-500.0,0.00067279,120]
[331439413,1720409440496,-3000.0,0.00069965,120]
[331439414,1720409440505,-2000.0,0.00070738,120]
[331439415,1720409440515,-500.0,0.00070817,120]
[331439416,1720409440525,-500.0,0.00070837,120]
[331439417,1720409440536,-500.0,0.00070837,120]
[331439418,1720409440546,-500.0,0.00070838,120]
[331439419,1720409440556,-302.52654225,0.00070847,10]
[331439420,1720409440566,-500.0,0.00070847,120]
[331439421,1720409440577,-498.78324801,0.00070847,120]
[331439422,1720409440588,-500.0,0.00070847,120]
[331439423,1720409440598,-1318.44,0.00070856,120]
[331439424,1720409440608,-861.12,0.00070856,120]
[331439425,1720409440621,-1626.07,0.00070856,120]
[331439426,1720409440632,-500.0,0.00070856,120]
[331439427,1720409440643,-500.0,0.00070856,120]
[331439428,1720409440657,-4192.85,0.00070856,120]
[331439429,1720409440667,-500.0,0.00070857,120]
[331439430,1720409440677,-500.0,0.00070857,120]
[331439431,1720409440688,-500.0,0.00070857,120]
[331439432,1720409440698,-1114.86,0.00070857,120]
[331439433,1720409440709,-611.79,0.00070857,120]
[331439434,1720409440719,-3358.1,0.00070857,120]
[331439435,1720409440729,-500.0,0.00070857,120]
[331439436,1720409440741,-498.50599538,0.00070857,120]
[331439437,1720409440752,-4143.35,0.00070857,120]
[331439438,1720409440763,-500.0,0.00070857,120]
[331439439,1720409440773,-824.37,0.00070857,120]
[331439440,1720409440785,-500.0,0.00072758,120]
[331439441,1720409440797,-3000.0,0.00074047,120]
[331439442,1720409440807,-500.0,0.00076318,120]
[331439443,1720409440818,-500.0,0.00076327,120]
[331439444,1720409440827,-500.0,0.00076327,120]
[331439445,1720409440838,-500.0,0.00076335,120]
[331439446,1720409440848,-500.0,0.00076336,120]
[331439447,1720409440858,-500.0,0.00076336,120]
[331439448,1720409440872,-591.41360934,0.00076336,120]
[331439450,1720409440883,-1114.86,0.00076336,120]
[331439452,1720409440893,-611.79,0.00076336,120]
[331439453,1720409440903,-3358.1,0.00076336,120]
[331439455,1720409440914,-500.0,0.00076336,120]
[331439456,1720409440924,-1318.44,0.00076336,120]
[331439457,1720409440935,-4143.35,0.00076336,120]
[331439458,1720409440946,-500.0,0.00076336,120]
[331439459,1720409440956,-824.37,0.00076336,120]
[331439460,1720409440966,-861.12,0.00076336,120]
[331439461,1720409440976,-1626.07,0.00076336,120]
[331439462,1720409440987,-500.0,0.00076336,120]
[331439463,1720409440997,-500.0,0.00076336,120]
[331439464,1720409441008,-4192.85,0.00076336,120]
[331439465,1720409441018,-3000.0,0.00078129,120]
[331439466,1720409441029,-500.0,0.00078238,120]
[331439467,1720409441040,-170.075959,0.00079041,120]
[331439468,1720409441051,-500.0,0.00080274,120]
[331439469,1720409441062,-999.0,0.00080274,120]
[331439470,1720409441072,-178.3896135,0.00081706,2]
[331439471,1720409441082,-302.52654225,0.00081796,13]
[331439472,1720409441093,-500.0,0.00081797,120]
[331439473,1720409441103,-500.0,0.00081806,120]
[331439474,1720409441115,-500.0,0.00081806,120]
[331439475,1720409441125,-4531.39,0.00081806,3]
[331439476,1720409441135,-3776.16,0.00081806,3]
[331439477,1720409441146,-1318.44,0.00081815,120]
[331439478,1720409441156,-861.12,0.00081815,120]
[331439479,1720409441167,-1626.07,0.00081815,120]
[331439480,1720409441178,-500.0,0.00081815,120]
[331439481,1720409441188,-500.0,0.00081815,120]
[331439482,1720409441198,-4192.85,0.00081815,120]
[331439483,1720409441208,-500.0,0.00081816,120]
[331439484,1720409441218,-500.0,0.00081816,120]
[331439485,1720409441228,-1114.86,0.00081816,120]
[331439486,1720409441238,-611.79,0.00081816,120]
[331439487,1720409441247,-3358.1,0.00081816,120]
[331439488,1720409441257,-500.0,0.00081816,120]
[331439489,1720409441267,-4143.35,0.00081816,120]
[331439490,1720409441277,-500.0,0.00081816,120]
[331439491,1720409441287,-824.37,0.00081816,120]
[331439492,1720409441296,-500.0,0.00082189,120]
[331439493,1720409441306,-500.0,0.0008219,120]
[331439494,1720409441316,-5204.38,0.00082191,120]
[331439495,1720409441326,-3000.0,0.00082212,120]
[331439496,1720409441336,-500.0,0.00083717,120]
[331439497,1720409441346,-3000.0,0.00086294,120]
[331439498,1720409441355,-500.0,0.00087276,120]
[331439499,1720409441369,-302.52654225,0.00087285,14]
[331439500,1720409441378,-500.0,0.00087286,120]
[331439501,1720409441388,-500.0,0.00087286,120]
[331439502,1720409441398,-500.0,0.00087294,120]
[331439503,1720409441408,-500.0,0.00087294,120]
[331439504,1720409441418,-500.0,0.00087295,120]
[331439505,1720409441428,-500.0,0.00087295,120]
[331439506,1720409441438,-1114.86,0.00087295,120]
[331439507,1720409441448,-611.79,0.00087295,120]
[331439508,1720409441457,-3358.1,0.00087295,120]
[331439509,1720409441468,-500.0,0.00087295,120]
[331439510,1720409441478,-1318.44,0.00087295,120]
[331439511,1720409441488,-4143.35,0.00087295,120]
[331439512,1720409441497,-500.0,0.00087295,120]
[331439513,1720409441507,-824.37,0.00087295,120]
[331439514,1720409441516,-861.12,0.00087295,120]
[331439515,1720409441527,-1626.07,0.00087295,120]
[331439516,1720409441536,-500.0,0.00087295,120]
[331439517,1720409441546,-500.0,0.00087295,120]
[331439518,1720409441556,-4192.85,0.00087295,120]
[331439519,1720409441565,-194.23989892,0.00087945,120]
[331439520,1720409441576,-194.73,0.00087945,120]
[331439521,1720409441585,-500.0,0.00089196,120]
[331439522,1720409441595,-302.0,0.00089973,120]
[331439523,1720409441605,-3000.0,0.00090376,120]
[331439524,1720409441616,-500.0,0.00092756,120]
[331439525,1720409441626,-500.0,0.00092765,120]
[331439526,1720409441637,-500.0,0.00092765,120]
[331439527,1720409441647,-1318.44,0.00092774,120]
[331439528,1720409441657,-861.12,0.00092774,120]
[331439529,1720409441666,-1626.07,0.00092774,120]
[331439530,1720409441676,-500.0,0.00092774,120]
[331439531,1720409441686,-500.0,0.00092774,120]
[331439532,1720409441696,-4192.85,0.00092774,120]
[331439533,1720409441706,-500.0,0.00092775,120]
[331439534,1720409441715,-500.0,0.00092775,120]
[331439535,1720409441725,-1114.86,0.00092775,120]
[331439536,1720409441734,-611.79,0.00092775,120]
[331439537,1720409441743,-3358.1,0.00092775,120]
[331439538,1720409441752,-500.0,0.00092775,120]
[331439539,1720409441762,-4143.35,0.00092775,120]
[331439540,1720409441771,-352.21962702,0.00092775,120]
[331439541,1720409441782,-824.37,0.00092775,120]
[331439542,1720409441795,-500.0,0.00094458,120]
[331439543,1720409441805,-3000.0,0.00094459,120]
[331439544,1720409441815,-500.0,0.00094676,120]
[331439545,1720409441826,-500.0,0.00096712,120]
[331439546,1720409441836,-500.0,0.00096712,120]
[331439547,1720409441846,-302.52654225,0.00098233,17]
[331439548,1720409441856,-500.0,0.00098235,120]
[331439549,1720409441871,-500.0,0.00098244,120]
[331439550,1720409441881,-500.0,0.00098244,120]
[331439551,1720409441892,-569.13037252,0.00098252,120]
[331439552,1720409441902,-548.61874223,0.00098252,120]
[331439553,1720409441913,-500.0,0.00098252,120]
[331439554,1720409441923,-500.0,0.00098252,120]
[331439555,1720409442004,-500.0,0.00098252,120]
[331439556,1720409442016,-500.0,0.00098252,120]
[331439557,1720409442026,-500.0,0.00098252,120]
[331439558,1720409442036,-500.0,0.00098252,120]
[331439559,1720409442046,-500.0,0.00098252,120]
[331439560,1720409442056,-500.0,0.00098252,120]
[331439561,1720409442067,-500.0,0.00098252,120]
[331439562,1720409442077,-500.0,0.00098252,120]
[331439563,1720409442087,-500.0,0.00098252,120]
[331439564,1720409442097,-500.0,0.00098252,120]
[331439565,1720409442108,-500.0,0.00098252,120]
[331439566,1720409442122,-500.0,0.00098252,120]
[331439567,1720409442132,-500.0,0.00098252,120]
[331439568,1720409442142,-500.0,0.00098252,120]
[331439569,1720409442153,-500.0,0.00098252,120]
[331439570,1720409442163,-500.0,0.00098252,120]
[331439571,1720409442174,-500.0,0.00098252,120]
[331439572,1720409442185,-500.0,0.00098252,120]
[331439573,1720409442195,-500.0,0.00098252,120]
[331439574,1720409442206,-210.39459209,0.00098252,120]
[331439575,1720409442216,-500.0,0.00098252,120]
[331439576,1720409442226,-1318.44,0.00098253,120]
[331439577,1720409442236,-861.12,0.00098253,120]
[331439578,1720409442246,-1626.07,0.00098253,120]
[331439579,1720409442256,-500.0,0.00098253,120]